Cogmind - Beta 14 @@@ ROGUE MODE // 2025.05.03 @ 02:38:50 Player: KTG-V3 Result: Destroyed by 20-6R2(R) with Subdweller Machine Gun Performance ------------- Evolutions (0) 0 Regions Visited (2) 400 Robots Destroyed (25) 125 Value Destroyed (636) 636 Prototype IDs (0) 0 Alien Tech Used (0) 0 Bonus (0) 0 TOTAL SCORE: 1161 Bonus ------- None Cogmind --------- Core Integrity 0/250 Matter 296/300 Energy 249/250 System Corruption 0% Temperature Cool (0) Movement Treading (160) Location -10/Subcaves Parts ------- > --- POWER (1) -------- Ion Engine > --- PROPULSION (2) --- Light Treads > --- UTILITY (2) ------ Improved Heat Sink Small Storage Unit > --- WEAPON (2) ------- Subdweller Laser Barrage Gun > --- INVENTORY (8) ---- Ion Engine Compact Wheel Heat Sink Seismic Detector Light Armor Plating Battle Rifle Light Cannon Battle Cannon Peak State ------------ > --- POWER ------------ Ion Engine > --- PROPULSION ------- Light Treads Light Treads > --- UTILITY ---------- Improved Heat Sink Small Storage Unit > --- WEAPON ----------- Subdweller Laser Barrage Gun > --- INVENTORY -------- Ion Engine Compact Wheel Heat Sink Seismic Detector Light Armor Plating Battle Rifle Light Cannon Battle Cannon [Rating: 13] Favorites ----------- Power Ion Engine Engine Ion Engine Propulsion Light Treads Treads Light Treads Wheel Wheel Utility Small Storage Unit Device Seismic Detector Storage Small Storage Unit Protection Light Armor Plating Weapon Medium Laser Energy Gun Medium Laser Ballistic Gun Subdweller Machine Gun Ballistic Cannon Light Cannon Build | -11 -10 -10 ------- Run | Yrd Mat Sub Slots Evolved . | . . . Power . | . . . Propulsion . | . . . Utility . | . . . Weapon . | . . . Parts Attached 28 | 8 14 6 Power 4 | 1 3 . Engine 4 | 1 3 . Core . | . . . Reactor . | . . . Propulsion 6 | 2 3 1 Treads 5 | 2 2 1 Leg . | . . . Wheel 1 | . 1 . Hover . | . . . Flight . | . . . Utility 9 | 3 5 1 Device 7 | 2 4 1 Storage 1 | 1 . . Processor . | . . . Hackware . | . . . Protection 1 | . 1 . Artifact . | . . . Weapon 9 | 2 3 4 Energy Gun 5 | 2 2 1 Energy Cannon . | . . . Ballistic Gun 3 | . . 3 Ballistic Cannon 1 | . 1 . Launcher . | . . . Special Weapon . | . . . Impact Weapon . | . . . Slashing Weapon . | . . . Piercing Weapon . | . . . Special Melee Weapon . | . . . Unidentified Prototypes . | . . . Parts Lost 4 | . 2 2 Power 1 | . 1 . Propulsion 1 | . . 1 Utility . | . . . Weapon 2 | . 1 1 Highest Loss Streak 2 | . 2 1 To Critical Strikes . | . . . Average Slot Usage (%) 99 | . 99 99 Engine 14 | . 14 14 Treads 24 | . 25 23 Wheel 2 | . 2 3 Device 13 | . 13 14 Storage 14 | . 14 14 Energy Gun 20 | . 23 14 Ballistic Gun 3 | . . 11 Ballistic Cannon 3 | . 4 2 Peak Build Rating 13 | 9 9 13 Average Rating 8 | 5 7 10 On Entrance 5 | . 7 8 Naked Turns . | . . . Heaviest Build 18 | 13 18 18 Greatest Support 40 | 40 40 40 Greatest Overweight (x) 1 | . 1 . Average Overweight (x) . | . . . Largest Inventory Capacity 8 | 8 8 8 Average Capacity 7 | 7 8 8 Most Carried 8 | 5 8 8 Average Carried 7 | 2 7 7 Final Capacity 8 | 8 8 8 Final Carried 8 | 4 8 8 Class Distribution -------------------- 100% | Mutant Dominant Class ---------------- Mutant | -10/Materials Mutant | -10/Subcaves Resources | -11 -10 -10 ----------- Run | Yrd Mat Sub Matter Collected 716 | 280 272 164 Remotely . | . . . Salvage Created 808 | 109 470 229 Parts 44 | 5 25 14 Haulers Intercepted 1 | . 1 . Recyclers Shooed 1 | . 1 . Parts Field Recycled . | . . . Retrieved Matter . | . . . Parts Self-Destructed 14 | . . 14 Prevented . | . . . Kills | -11 -10 -10 ------- Run | Yrd Mat Sub Combat Hostiles Destroyed 17 | . 9 8 Guns 13 | . 6 7 Cannons 4 | . 3 1 Classes Destroyed 8 | 2 4 2 Worker 1 | . 1 . Tunneler 2 | 1 1 . Hauler 1 | . 1 . Recycler 1 | 1 . . Watcher 3 | . 3 . Swarmer 4 | . . 4 Grunt 9 | . 9 . Subdweller 4 | . . 4 Best Kill Streak 3 | 2 3 2 Combat Bots Only 3 | . 3 2 Max Kills in Single Turn 1 | 1 1 1 Gunslinging . | . . . Exploded . | . . . Melee . | . . . Uniques/NPCs Destroyed . | . . . Combat | -11 -10 -10 -------- Run | Yrd Mat Sub Hostile Shots Fired 132 | . 66 66 Missed 35 | . 16 19 Damage Taken 1323 | . 624 699 Core 267 | . 88 179 Absorbed by Shields . | . . . Regen/Repaired (Parts) 219 | . 219 . Core Remaining (%) 100 | 100 . . Volleys Fired 89 | 3 58 28 Largest 2 | 2 2 2 Hottest 100 | 100 100 88 Shots Fired 175 | 6 113 56 Gun 145 | 6 88 51 Cannon 30 | . 25 5 Launcher . | . . . Special . | . . . Kinetic 53 | . 25 28 Thermal 122 | 6 88 28 Explosive . | . . . Electromagnetic . | . . . Robot Hit Streak 11 | 3 11 9 Robot Miss Streak 6 | 1 4 6 Penetration Max . | . . . Secondary Targets . | . . . Shots Hit Robots 109 | 4 74 31 Core Hits 42 | 3 28 11 Critical Kills 1 | . . 1 Critical Parts Destroyed . | . . . Critical Strikes 10 | . 6 4 Burn 8 | . 5 3 Destroy 1 | . . 1 Blast 1 | . 1 . Melee Attacks . | . . . Impact . | . . . Slashing . | . . . Piercing . | . . . Sneak Attacks . | . . . Combat Hostiles . | . . . Follow-up Attacks . | . . . Damage Inflicted 1489 | 49 1050 390 Guns 1098 | 49 710 339 Cannons 391 | . 340 51 Explosions . | . . . Melee . | . . . Ramming . | . . . Kinetic 538 | . 340 198 Thermal 951 | 49 710 192 Explosive . | . . . Electromagnetic . | . . . Impact . | . . . Slashing . | . . . Piercing . | . . . Highest Corruption . | . . . Average Corruption . | . . . Corruption Purged . | . . . Corruption Blocked . | . . . Overload Shots . | . . . Overflow Damage . | . . . Projectiles . | . . . Explosions . | . . . Melee . | . . . Knockbacks 6 | . 6 . Impact . | . . . Kinetic 6 | . 6 . Secondary . | . . . Self-Inflicted Damage . | . . . Shots . | . . . Rammed . | . . . Targets Rammed . | . . . Kicked . | . . . Crushed . | . . . Highest Temperature 466 | 117 466 242 Average Temperature 110 | 59 112 150 Received Heat Transfer 826 | . 372 454 Effects 6 | . 6 . Shutdowns 1 | . 1 . Interference 3 | . 3 . Matter Decay 1 | . 1 . Short Circuit 1 | . 1 . Siege Activations . | . . . Robots Corrupted . | . . . Combat Hostiles . | . . . Parts Fried . | . . . Impact Corruptions . | . . . Robots Melted . | . . . Combat Hostiles . | . . . Parts Melted 7 | . 5 2 Heat Transferred 3199 | 148 2396 655 Parts Sabotaged . | . . . Parts Stolen . | . . . Parts Stripped . | . . . Power Chain Reactions . | . . . Alert | -11 -10 -10 ------- Run | Yrd Mat Sub Peak Influence 187 | 10 187 . Initial 6 | . 6 . Average 46 | 3 49 . Maximum Alert Level . | . . . Low Security (%) 100 | 100 100 . Level 1 . | . . . Level 2 . | . . . Level 3 . | . . . Level 4 . | . . . Level 5 . | . . . High Security . | . . . Max Security . | . . . Squads Dispatched 1 | . 1 . Investigation 1 | . 1 . Extermination . | . . . Reinforcement . | . . . Assault . | . . . Garrison . | . . . Intercept . | . . . Searches Triggered . | . . . Construction Impeded . | . . . Haulers Reinforced . | . . . Active Scanning Responses . | . . . Cargo Convoy Interrupts . | . . . Stealth | -11 -10 -10 --------- Run | Yrd Mat Sub Distress Signals 1 | . 1 . Communications Jammed . | . . . Distress Signals . | . . . Times Spotted 29 | . 15 14 Peak Tracking Total 6 | . 4 6 Tactical Retreats 2 | . 1 1 Traps | -11 -10 -10 ------- Run | Yrd Mat Sub Traps Triggered 1 | . 1 . Indirectly . | . . . Trap Hack Attempts . | . . . Triggered . | . . . Disarmed . | . . . Reprogrammed . | . . . Reused . | . . . Traps Extracted . | . . . Installed . | . . . Triggered 1 | . . 1 Machines | -11 -10 -10 ---------- Run | Yrd Mat Sub Machines Disabled 2 | . 2 . Max in Single Turn 1 | . 1 . Machines Repaired . | . . . Machines Dismantled . | . . . Machines Sabotaged . | . . . Overloaded Fab Kills . | . . . Hacking | -11 -10 -10 --------- Run | Yrd Mat Sub Machines Accessed 7 | . 7 . Terminals 5 | . 5 . Fabricators . | . . . Repair Stations 1 | . 1 . Recycling Units 1 | . 1 . Scanalyzers . | . . . Garrison Access . | . . . Total Hacks 15 | . 15 . Successful 11 | . 11 . Failed 4 | . 4 . Catastrophic 3 | . 3 . Database Lockouts . | . . . Manual 6 | . 6 . Terminals 10 | . 10 . Fabricators . | . . . Repair Stations 4 | . 4 . Recycling Units 1 | . 1 . Scanalyzers . | . . . Garrison Access . | . . . Terminal Hacks 3 | . 3 . Part Schematic 1 | . 1 . Locate Traps 1 | . 1 . Hauler Manifests 1 | . 1 . Fabricator Hacks . | . . . Repair Station Hacks 4 | . 4 . Scan Component 2 | . 2 . Repair 2 | . 2 . Recycling Unit Hacks 1 | . 1 . Retrieve Components 1 | . 1 . Scanalyzer . | . . . Garrison Access Hacks . | . . . Unauthorized Hacks 3 | . 3 . Terminals 3 | . 3 . Botnet 3 | . 3 . Fabricators . | . . . Repair Stations . | . . . Recycling Units . | . . . Scanalyzers . | . . . Garrison Access . | . . . Data Cores Recovered . | . . . Used . | . . . Hacking Detections 5 | . 5 . Full Trace Events 1 | . 1 . Feedback Events . | . . . Feedback Blocked . | . . . Robot Schematics Acquired . | . . . Robots Built . | . . . Authchips . | . . . Time . | . . . Total Robot Build Rating . | . . . Part Schematics Acquired 1 | . 1 . Parts Built . | . . . Authchips . | . . . Time . | . . . Total Part Build Rating . | . . . Parts Repaired 2 | . 2 . Time 52 | . 52 . Parts Recycled . | . . . Recycled Matter . | . . . Retrieved Matter . | . . . Retrieved Components 5 | . 5 . Parts Scanalyzed . | . . . Part Schematics Acquired . | . . . Parts Damaged . | . . . Bothacking | -11 -10 -10 ------------ Run | Yrd Mat Sub Used RIF Installer . | . . . Robots Hacked . | . . . Non-combat . | . . . Combat . | . . . Robot Hacks Applied . | . . . Relay Couplers Released . | . . . Fabnet Peak Effective % . | . . . Robots Rewired . | . . . Allies Hacked . | . . . Hacks Repelled . | . . . Allies | -11 -10 -10 -------- Run | Yrd Mat Sub Total Allies . | . . . Largest Group . | . . . Highest-Rated Group . | . . . Highest-Rated Ally . | . . . Total Orders . | . . . Ally Attacks . | . . . Total Damage . | . . . Kills . | . . . Allies Corrupted . | . . . Allies Melted . | . . . Intel | -11 -10 -10 ------- Run | Yrd Mat Sub Robot Analysis Total . | . . . Derelict Logs Recovered 1 | . . 1 Drone Launches . | . . . Drone Recoveries . | . . . Exploration | -11 -10 -10 ------------- Run | Yrd Mat Sub Turns Passed 2817 | 120 1864 833 Spaces Moved 1271 | 61 776 434 Core 4 | 4 . . Treads 1255 | 57 764 434 Legs . | . . . Wheels 12 | . 12 . Hover . | . . . Flight . | . . . Fastest Speed 50 | 50 95 160 Average Speed 159 | 152 158 160 Slowest Speed 160 | 160 160 160 Overloaded Moves . | . . . Propulsion Burnouts . | . . . Robots Hopped . | . . . Cave-ins Triggered . | . . . Exploration Rate (%) 44 | 4 98 31 Regions Visited 2 Branch Regions 1 Pre-discovered Areas 1 | . . 1 Known Exits Taken . | . . . Unknown Exits Taken 2 | 1 1 . Scrap Searched 2 | . . 2 Spaces Dug . | . . . Terrain Destroyed . | . . . Melee . | . . . Projectile . | . . . AOE . | . . . Terrain Rammed . | . . . Walls Destroyed . | . . . Machines Disabled . | . . . Actions | -11 -10 -10 --------- Run | Yrd Mat Sub Total 1893 | 79 1295 519 Wait 473 | 2 427 44 Move 1269 | 60 775 434 Hop . | . . . Pick Up 20 | 5 12 3 Fast Attach 9 | 7 2 . Attach 4 | 1 2 1 Detach . | . . . Swap 15 | . 10 5 Drop 14 | 1 9 4 Fire 89 | 3 58 28 Melee . | . . . Ram . | . . . Kick . | . . . Crush . | . . . Escape Stasis . | . . . Rewire . | . . . Trap . | . . . Miscellaneous . | . . . Route ------- -11/Scrapyard -10/Materials (discovered 5 exits: [*Mat x3] / [*Min] / [*Sub]) -10/Subcaves (discovered 1 exit: [*Mat]) History --------- Turn | Location | Event 14 | -11/Scrapyard | Discovered new exit (range 16) 121 | -11/Scrapyard | Entered Materials 312 | -10/Materials | Build established: Mutant 556 | -10/Materials | Discovered new exit (range 10) 741 | -10/Materials | Discovered new exit (range 15) 960 | -10/Materials | Discovered new exit (range 13) 1806 | -10/Materials | Repaired Lgt. Treads 1833 | -10/Materials | Repaired Lgt. Treads 1834 | -10/Materials | Discovered new exit (range 15) 1973 | -10/Materials | Discovered new exit (range 7) 1985 | -10/Materials | Entered Subcaves 2248 | -10/Subcaves | A swath of the cavern ceiling suddenly collapsed 2463 | -10/Subcaves | Core integrity fell below 50% 2656 | -10/Subcaves | Shifting Twisted Machinery released Battle Rifle 2670 | -10/Subcaves | Shifting Twisted Machinery released Sub. Power Source 2692 | -10/Subcaves | Shifting Twisted Machinery released Barrage Gun 2696 | -10/Subcaves | Core integrity fell below 20% 2720 | -10/Subcaves | Discovered new exit (range 3) 2806 | -10/Subcaves | Ambushed by Subdwellers from Twisted Machinery 2818 | -10/Subcaves | Destroyed by 20-6R2(R) with Subdweller Machine Gun Last Messages --------------- 02602_ Subatomizers dissect the Mak. Leg. 02641_ Acquired derelict log, extracted data. World map updated: -9/Materials. 02644_ Subatomizers dissect the Mak. Leg. Battle Rifle falls loose from the Twisted Machinery. Sub. Power Source falls loose from the Twisted Machinery. 02670_ Dropped Sub. Machine Gun. 02675_ Critical hit (Meltdown: +250). 02678_ 4L-WR7(R) suffers critical hit (Burn). 02681_ Sub. Monowheel melted. 02681_ 4L-WR7(R) destroyed. 02683_ Med. Laser destroyed. Barrage Gun falls loose from the Twisted Machinery. 02696_ KF-IK9(R) destroyed. 02699_ Acquired 42 matter. 02720_ EXIT=FOUND 02761_ Lgt. Treads destroyed. 02765_ BN-84N(R) suffers critical hit (Destroy). 02765_ BN-84N(R) destroyed. 02767_ Acquired 25 matter. Map ----- +----------------------------------------------------+ | ?????????????????????????????????????????????" #? | | ????????????????????????????????????????????# #? | | ??????????????????????????????????????##???## ## | | ??????????????????????????????????????# ??# ? | | ??????????????????????????????????????# "?## " #? | | ??????????????????????????????????????#" ## "" ## | | ?????????????????????????????????????##"" ""*""" # | | ?????????????????????????????????????# " "" " " | | ??????????????????????????????????????# " "" """ | | ??????????????????????????????????????#### " """" | | ???????????????????????????????????????# ## " """ | | ???????????????????????????????????????# """%%& | | ??????????????????????????????????????##" """!&[ | | ??????????????????????????????????????#"" "##""# " | | ??????????????????????????????????????#" ###### | | ??????????????????????????????????????#"" ##?# " | | ?????????????????????????????#####???##" < ### " | | ????????????????????????????## ##### ## " | | ???????????????????????????## ""*"" | | ???????????????????##??????# ""&%"" #####""" | | ???????????? ?????## ###??# ""#! ##???## " | | ???????????? "????? ##### ## "###?????### | | ???????????#"" ?????# ##### ## ""##???????## | | ????????????# ??## #??## #?## "#???????#" | | ???????????## ?# ##### ### ##???????# | | ???????????# "#" # @## #????????## | | ???????????# " R #?????????# | | ???????????# " "R #####?????????? | | ???????????## " # ## ##?????????????? | | ????????????##### ########## #??????????????? | | ????????????????###?????????# % #??????????????? | | ????????????????????????????# #??????????????? | | ????????????????????????????# #??????????????? | | ????????????????????????????#######??????????????? | | ?????????????????????????????????????????????????? | | ?????????????????????????????????????????????????? | | ?????????????????????????????????????????????????? | | ?????????????????????????????????????????????????? | | ?????????????????????????????????????????????????? | | ?????????????????????????????????????????????????? | | ?????????????????????????????????????????????????? | | ?????????????????????????????????????????????????? | | ?????????????????????????????????????????????????? | | ?????????????????????????????????????????????????? | | ?????????????????????????????????????????????????? | | | | | | | | | | | +----------------------------------------------------+ Best States ------------- Heat Dissipation 39 Energy Generation 10 Energy Capacity 250 Matter Stores 300 Matter Capacity 300 Sight Range 16 Terrain Scan Range 16 Terrain Scan Density 10 Armor Coverage 150 Evasion (%) 40 Recoil Reduction 2 Item Schematics ----------------- Huge Storage Unit | -10/Materials | Hacked Robot Schematics ------------------ None Fabricated ------------ Nothing Alien Tech Used ----------------- None Achievements -------------- None Challenges ------------ None Game ------ Seed DisassembledRocketMallet Manual? 0 Play Time 00:15:03 Cumulative 274.7 hours Start 2025.05.03 @ 02:27:31 End 2025.05.03 @ 02:38:50 Sessions 1 Manual Loads 0 Difficulty Rogue Special Mode None Game No. 71 Rogue 70 Adventurer 1 Explorer 0 Win Type - Total 24 Types 6/3/7/0/0/0/8/0/0 Lore% 62 Gallery% 79 Achievement% 69 Wizard Run 0 Options --------- Layout 0 ASCII 0 Keyboard 0 Movement Mouse Keybinds 0 Fullscreen 1 Font 18/Terminus Map View 76x50 Zoom Use 0% Tactical HUD 1 Map Filters NONE Filters NONE Steam 0 RUN: f7fc1bb8-c38f-4bf4-8820-a587c2ffcefa